[Event "*** Titled Tuesday 3|2 Blitz"]
[Site "Chess.com"]
[Date "2016.02.02"]
[Round "9"]
[White "GM_Huschenbeth"]
[Black "Dlugy"]
[Result "1-0"]
[WhiteElo "2383"]
[BlackElo "2557"]
[TimeControl "180+2"]
[EndTime "18:49:13 PST"]
[Termination "GM_Huschenbeth won by resignation"]

1. e4 {[%clk 0:03:01.9]} 1... d5 {[%clk 0:02:59.3]} 2. exd5 {[%clk 0:03:03.1]}
2... Qxd5 {[%clk 0:03:00.9]} 3. Nc3 {[%clk 0:03:05]} 3... Qd6 {[%clk 0:03:02.4]}
4. d4 {[%clk 0:03:06.3]} 4... c6 {[%clk 0:03:03.8]} 5. Nf3 {[%clk 0:03:07.8]}
5... Bg4 {[%clk 0:03:05]} 6. h3 {[%clk 0:03:02.5]} 6... Bxf3 {[%clk 0:03:06.2]}
7. Qxf3 {[%clk 0:03:04.4]} 7... Qxd4 {[%clk 0:03:07.2]} 8. Bd2 {[%clk
0:02:49.8]} 8... Nf6 {[%clk 0:02:54.8]} 9. O-O-O {[%clk 0:02:49.9]} 9... Qd8
{[%clk 0:02:45.7]} 10. g4 {[%clk 0:02:41.5]} 10... e6 {[%clk 0:02:44.3]} 11. g5
{[%clk 0:02:28.4]} 11... Nd5 {[%clk 0:02:44.5]} 12. Ne4 {[%clk 0:02:24]} 12...
Nd7 {[%clk 0:02:31.5]} 13. c4 {[%clk 0:02:23.9]} 13... Nb4 {[%clk 0:02:15.9]}
14. Kb1 {[%clk 0:02:03.3]} 14... Be7 {[%clk 0:01:51.7]} 15. Bc3 {[%clk
0:01:59.2]} 15... Qa5 {[%clk 0:01:23.5]} 16. a3 {[%clk 0:01:54.2]} 16... Qf5
{[%clk 0:01:25]} 17. Qe3 {[%clk 0:01:42.6]} 17... Bxg5 {[%clk 0:01:13.9]} 18.
Qd4 {[%clk 0:01:10]} 18... Nc5 {[%clk 0:00:51.9]} 19. Bd3 {[%clk 0:01:08.3]}
19... Rd8 {[%clk 0:00:35.4]} 20. Nxc5 {[%clk 0:00:25.3]} 20... Rxd4 {[%clk
0:00:30]} 21. Bxf5 {[%clk 0:00:26.1]} 21... Rxc4 {[%clk 0:00:15.4]} 22. axb4
{[%clk 0:00:24.3]} 22... b6 {[%clk 0:00:13.4]} 23. Bd3 {[%clk 0:00:22.3]} 23...
Rh4 {[%clk 0:00:13.4]} 24. Ne4 {[%clk 0:00:23.4]} 24... Be7 {[%clk 0:00:14.5]}
25. Bxg7 {[%clk 0:00:24.3]} 25... Rg8 {[%clk 0:00:15.9]} 26. Nf6+ {[%clk
0:00:25.4]} 26... Bxf6 {[%clk 0:00:16.7]} 27. Bxf6 {[%clk 0:00:27.3]} 27... Rxb4
{[%clk 0:00:17.1]} 28. Bxh7 {[%clk 0:00:27.3]} 1-0

[Event "*** Titled Tuesday 3|2 Blitz"]
[Site "Chess.com"]
[Date "2016.02.02"]
[Round "9"]
[White "attack2mateU"]
[Black "Gabrielian_Artur"]
[Result "1-0"]
[WhiteElo "2498"]
[BlackElo "2458"]
[TimeControl "180+2"]
[EndTime "18:49:16 PST"]
[Termination "attack2mateU won by resignation"]

1. e4 {[%clk 0:03:01.9]} 1... c5 {[%clk 0:02:39.7]} 2. Nf3 {[%clk 0:03:02.8]}
2... d6 {[%clk 0:02:27.2]} 3. d4 {[%clk 0:03:03.7]} 3... cxd4 {[%clk 0:02:28.3]}
4. Nxd4 {[%clk 0:03:04.9]} 4... Nf6 {[%clk 0:02:29.3]} 5. Nc3 {[%clk 0:03:06]}
5... a6 {[%clk 0:02:30.3]} 6. Be3 {[%clk 0:03:06.9]} 6... e6 {[%clk 0:02:31.4]}
7. f3 {[%clk 0:03:07.1]} 7... b5 {[%clk 0:02:31.3]} 8. Qd2 {[%clk 0:03:07.2]}
8... Nbd7 {[%clk 0:02:30.7]} 9. g4 {[%clk 0:03:07.9]} 9... h6 {[%clk 0:02:30]}
10. O-O-O {[%clk 0:03:08]} 10... b4 {[%clk 0:02:30.8]} 11. Nce2 {[%clk
0:03:08.5]} 11... Qc7 {[%clk 0:02:31.1]} 12. h4 {[%clk 0:03:07.7]} 12... d5
{[%clk 0:02:28.7]} 13. Bf4 {[%clk 0:03:05.4]} 13... e5 {[%clk 0:02:27.5]} 14.
Bh2 {[%clk 0:03:06]} 14... dxe4 {[%clk 0:02:26.6]} 15. g5 {[%clk 0:03:06.7]}
15... hxg5 {[%clk 0:02:24.3]} 16. hxg5 {[%clk 0:03:08.6]} 16... exf3 {[%clk
0:02:17.4]} 17. gxf6 {[%clk 0:02:58]} 17... fxe2 {[%clk 0:02:16.1]} 18. Qxe2
{[%clk 0:02:51.8]} 18... Rxh2 {[%clk 0:01:08]} 19. Rxh2 {[%clk 0:02:49.1]} 19...
gxf6 {[%clk 0:01:06.1]} 20. Rh8 {[%clk 0:02:33.7]} 20... Nc5 {[%clk 0:00:58.4]}
21. Bg2 {[%clk 0:02:25.8]} 21... Bb7 {[%clk 0:00:42.3]} 22. Nf5 {[%clk 0:02:22]}
22... b3 {[%clk 0:00:12.5]} 23. axb3 {[%clk 0:01:49.5]} 23... Qa5 {[%clk
0:00:12.2]} 24. Kb1 {[%clk 0:01:29.3]} 24... Rd8 {[%clk 0:00:05.1]} 25. Nd6+
{[%clk 0:01:07.8]} 25... Ke7 {[%clk 0:00:05.8]} 26. Nxb7 {[%clk 0:01:03.7]}
26... Rxd1+ {[%clk 0:00:06.2]} 27. Qxd1 {[%clk 0:01:04.8]} 27... Nxb7 {[%clk
0:00:06.1]} 28. Bxb7 {[%clk 0:01:05.2]} 28... Qb6 {[%clk 0:00:07.5]} 29. Bc8
{[%clk 0:01:01.8]} 1-0

[Event "*** Titled Tuesday 3|2 Blitz"]
[Site "Chess.com"]
[Date "2016.02.02"]
[Round "9"]
[White "Zazuliak"]
[Black "Silent_Terror"]
[Result "0-1"]
[WhiteElo "2323"]
[BlackElo "2483"]
[TimeControl "180+2"]
[EndTime "18:49:35 PST"]
[Termination "Silent_Terror won by resignation"]

1. d4 {[%clk 0:03:00]} 1... e6 {[%clk 0:03:01.9]} 2. c4 {[%clk 0:03:00.8]} 2...
Bb4+ {[%clk 0:03:02.1]} 3. Nc3 {[%clk 0:03:00.1]} 3... c5 {[%clk 0:03:02.8]} 4.
Nf3 {[%clk 0:02:59.1]} 4... Bxc3+ {[%clk 0:03:01.6]} 5. bxc3 {[%clk 0:02:59.6]}
5... d6 {[%clk 0:03:03.5]} 6. e4 {[%clk 0:02:51.7]} 6... b6 {[%clk 0:03:03.4]}
7. Bd3 {[%clk 0:02:50.2]} 7... Nc6 {[%clk 0:03:04.3]} 8. O-O {[%clk 0:02:50.5]}
8... Na5 {[%clk 0:03:05.4]} 9. Qe2 {[%clk 0:02:50.8]} 9... Ba6 {[%clk
0:03:05.9]} 10. e5 {[%clk 0:02:34]} 10... Ne7 {[%clk 0:02:55.7]} 11. Bf4 {[%clk
0:02:15.8]} 11... d5 {[%clk 0:02:47]} 12. cxd5 {[%clk 0:02:07.3]} 12... Bxd3
{[%clk 0:02:45.6]} 13. Qxd3 {[%clk 0:02:07.9]} 13... c4 {[%clk 0:02:41.6]} 14.
Qc2 {[%clk 0:02:02.5]} 14... Nxd5 {[%clk 0:02:41.4]} 15. Bg5 {[%clk 0:01:57.3]}
15... Qd7 {[%clk 0:02:39.2]} 16. Nd2 {[%clk 0:01:52.5]} 16... h6 {[%clk
0:02:39.4]} 17. Be3 {[%clk 0:01:51]} 17... f5 {[%clk 0:02:32]} 18. exf6 {[%clk
0:01:50.7]} 18... gxf6 {[%clk 0:02:33.8]} 19. Qg6+ {[%clk 0:01:46.8]} 19... Qf7
{[%clk 0:02:31.5]} 20. Qxf7+ {[%clk 0:01:42.7]} 20... Kxf7 {[%clk 0:02:33.4]}
21. Rac1 {[%clk 0:01:29.7]} 21... Rac8 {[%clk 0:02:32.1]} 22. Ne4 {[%clk
0:01:27.8]} 22... Ke7 {[%clk 0:02:28.7]} 23. Rfe1 {[%clk 0:01:26.1]} 23... f5
{[%clk 0:02:26.7]} 24. Nd2 {[%clk 0:00:59.3]} 24... f4 {[%clk 0:02:25.2]} 25.
Nf3 {[%clk 0:00:55.1]} 25... fxe3 {[%clk 0:02:25.3]} 26. fxe3 {[%clk 0:00:56.5]}
26... b5 {[%clk 0:02:17.1]} 27. e4 {[%clk 0:00:57.2]} 27... Nf6 {[%clk 0:02:18]}
28. Ne5 {[%clk 0:00:58]} 28... Rhg8 {[%clk 0:02:18.1]} 29. Rc2 {[%clk
0:00:57.4]} 29... Nd7 {[%clk 0:02:14.3]} 30. Nf3 {[%clk 0:00:55.3]} 30... Rcf8
{[%clk 0:02:14.7]} 31. Kf2 {[%clk 0:00:54.2]} 31... e5 {[%clk 0:02:13.5]} 32. a4
{[%clk 0:00:36.7]} 32... a6 {[%clk 0:02:09.7]} 33. axb5 {[%clk 0:00:36.7]} 33...
axb5 {[%clk 0:02:11.6]} 34. Ra1 {[%clk 0:00:38.1]} 34... Nb3 {[%clk 0:02:12.6]}
35. Ra6 {[%clk 0:00:38.2]} 35... exd4 {[%clk 0:02:12.8]} 36. cxd4 {[%clk
0:00:38.8]} 36... Nxd4 {[%clk 0:02:08.8]} 37. Rd2 {[%clk 0:00:34.8]} 37... Nxf3
{[%clk 0:02:02.2]} 38. gxf3 {[%clk 0:00:35.5]} 38... c3 {[%clk 0:01:49.9]} 39.
Rd3 {[%clk 0:00:33.5]} 39... c2 {[%clk 0:01:46.9]} 40. Rc3 {[%clk 0:00:29.3]}
40... Rc8 {[%clk 0:01:44.3]} 41. Rac6 {[%clk 0:00:29.9]} 41... Rxc6 {[%clk
0:01:42.4]} 42. Rxc6 {[%clk 0:00:30.4]} 42... b4 {[%clk 0:01:43.1]} 43. Rxc2
{[%clk 0:00:31.2]} 43... Rb8 {[%clk 0:01:42.7]} 44. Rb2 {[%clk 0:00:32]} 44...
Nc5 {[%clk 0:01:41.8]} 45. Ke3 {[%clk 0:00:32.7]} 45... b3 {[%clk 0:01:42.4]}
46. Kd4 {[%clk 0:00:30.9]} 46... Na4 {[%clk 0:01:43.5]} 47. Rb1 {[%clk 0:00:32]}
47... b2 {[%clk 0:01:44.4]} 48. f4 {[%clk 0:00:30.2]} 48... Rc8 {[%clk
0:01:44.3]} 0-1

[Event "*** Titled Tuesday 3|2 Blitz"]
[Site "Chess.com"]
[Date "2016.02.02"]
[Round "9"]
[White "kharposh"]
[Black "chessking2151"]
[Result "0-1"]
[WhiteElo "2055"]
[BlackElo "2241"]
[TimeControl "180+2"]
[EndTime "18:50:32 PST"]
[Termination "chessking2151 won by resignation"]

1. e4 {[%clk 0:03:01.9]} 1... e5 {[%clk 0:03:00.5]} 2. Nf3 {[%clk 0:03:03.2]}
2... Nc6 {[%clk 0:03:01.6]} 3. Bb5 {[%clk 0:03:04.6]} 3... f5 {[%clk 0:03:02.8]}
4. d4 {[%clk 0:03:01.7]} 4... fxe4 {[%clk 0:03:00.6]} 5. Nxe5 {[%clk 0:02:59]}
5... Nxe5 {[%clk 0:03:01.5]} 6. dxe5 {[%clk 0:02:59.7]} 6... c6 {[%clk 0:03:03]}
7. Bc4 {[%clk 0:02:57.1]} 7... Qa5+ {[%clk 0:03:03.5]} 8. Bd2 {[%clk 0:02:39.8]}
8... Qxe5 {[%clk 0:03:03.5]} 9. Bc3 {[%clk 0:02:41.2]} 9... Qe7 {[%clk 0:03:03]}
10. Qh5+ {[%clk 0:02:31.6]} 10... Kd8 {[%clk 0:02:48]} 11. Bxg8 {[%clk
0:02:30.9]} 11... Rxg8 {[%clk 0:02:48.2]} 12. Qxh7 {[%clk 0:02:32.1]} 12... Qe6
{[%clk 0:02:49.8]} 13. O-O {[%clk 0:02:23.3]} 13... d5 {[%clk 0:02:50.5]} 14.
Nd2 {[%clk 0:02:17.5]} 14... Be7 {[%clk 0:02:48.1]} 15. Rad1 {[%clk 0:02:12.3]}
15... Bd7 {[%clk 0:02:45.7]} 16. Rfe1 {[%clk 0:01:55]} 16... Kc7 {[%clk
0:02:45.4]} 17. Nf3 {[%clk 0:01:50.1]} 17... Bd6 {[%clk 0:02:35.9]} 18. Ng5
{[%clk 0:01:20.5]} 18... Qe7 {[%clk 0:02:31.6]} 19. Qg6 {[%clk 0:01:08.3]} 19...
Raf8 {[%clk 0:02:22.4]} 20. Nxe4 {[%clk 0:00:19.1]} 20... Bf4 {[%clk 0:02:10.8]}
21. Ng3 {[%clk 0:00:13.2]} 21... Qd6 {[%clk 0:02:02.8]} 22. Qxd6+ {[%clk
0:00:13]} 22... Kxd6 {[%clk 0:02:02.4]} 23. Nh5 {[%clk 0:00:10.1]} 23... Bh6
{[%clk 0:02:00.9]} 24. Be5+ {[%clk 0:00:11.2]} 24... Kc5 {[%clk 0:01:59.4]} 25.
f4 {[%clk 0:00:11.6]} 25... Bg4 {[%clk 0:01:54.7]} 26. b4+ {[%clk 0:00:03.8]}
26... Kb6 {[%clk 0:01:48.1]} 27. Bd4+ {[%clk 0:00:03.8]} 27... Kc7 {[%clk
0:01:48]} 28. Be5+ {[%clk 0:00:03.2]} 28... Kc8 {[%clk 0:01:47.6]} 29. Ng3
{[%clk 0:00:02.7]} 29... Bxd1 {[%clk 0:01:48.2]} 30. Rxd1 {[%clk 0:00:04.1]}
30... Bxf4 {[%clk 0:01:49.9]} 31. Bxf4 {[%clk 0:00:03.9]} 31... Rxf4 {[%clk
0:01:50.9]} 32. c3 {[%clk 0:00:04.1]} 32... Re8 {[%clk 0:01:51]} 33. Rd2 {[%clk
0:00:04.6]} 33... Rc4 {[%clk 0:01:52.1]} 34. Rc2 {[%clk 0:00:03.8]} 34... Re1+
{[%clk 0:01:52.9]} 35. Kf2 {[%clk 0:00:03.2]} 35... Re7 {[%clk 0:01:54.3]} 36.
h3 {[%clk 0:00:03]} 36... Rf4+ {[%clk 0:01:55.4]} 37. Kg1 {[%clk 0:00:03]} 37...
g5 {[%clk 0:01:56.2]} 38. Kh2 {[%clk 0:00:04.8]} 38... Kd7 {[%clk 0:01:56.1]}
39. Nh5 {[%clk 0:00:05.6]} 39... Rf8 {[%clk 0:01:55.3]} 40. Ng3 {[%clk 0:00:07]}
40... Rh7 {[%clk 0:01:55.6]} 41. Ne2 {[%clk 0:00:07.4]} 41... g4 {[%clk
0:01:56.1]} 42. Nd4 {[%clk 0:00:08.9]} 42... gxh3 {[%clk 0:01:55.4]} 43. gxh3
{[%clk 0:00:10.4]} 43... Rfh8 {[%clk 0:01:57.1]} 44. Kg2 {[%clk 0:00:09.8]}
44... Rxh3 {[%clk 0:01:57.7]} 45. Nf3 {[%clk 0:00:11.5]} 45... R3h7 {[%clk
0:01:57.6]} 46. Re2 {[%clk 0:00:13]} 46... Rg7+ {[%clk 0:01:58.6]} 47. Kf2
{[%clk 0:00:14.7]} 47... Rf8 {[%clk 0:02:00.1]} 48. Ke3 {[%clk 0:00:15.4]} 48...
Re7+ {[%clk 0:02:01.2]} 49. Kf2 {[%clk 0:00:15.4]} 49... Rxe2+ {[%clk
0:02:00.9]} 50. Kxe2 {[%clk 0:00:14.6]} 50... Kd6 {[%clk 0:02:02.4]} 51. Ke3
{[%clk 0:00:15.5]} 51... Re8+ {[%clk 0:02:03.7]} 52. Kd3 {[%clk 0:00:16.3]}
52... b6 {[%clk 0:02:04.8]} 53. Nd4 {[%clk 0:00:16.6]} 53... Rh8 {[%clk
0:02:03.8]} 54. Kc2 {[%clk 0:00:14.7]} 54... Rh2+ {[%clk 0:02:04.2]} 55. Kb3
{[%clk 0:00:16.4]} 55... Rh3 {[%clk 0:02:03.9]} 56. a4 {[%clk 0:00:15.1]} 56...
a6 {[%clk 0:02:04]} 57. a5 {[%clk 0:00:14.2]} 57... bxa5 {[%clk 0:02:04.6]} 58.
bxa5 {[%clk 0:00:14.8]} 58... c5 {[%clk 0:02:06.3]} 59. Nf5+ {[%clk 0:00:15.3]}
59... Ke5 {[%clk 0:02:04.4]} 60. Ne7 {[%clk 0:00:15.9]} 60... d4 {[%clk
0:02:05.3]} 61. Nc6+ {[%clk 0:00:17.1]} 61... Kd6 {[%clk 0:02:06.6]} 62. Nb8
{[%clk 0:00:09.5]} 62... Rxc3+ {[%clk 0:02:07.1]} 63. Ka4 {[%clk 0:00:11.1]}
63... Rc4+ {[%clk 0:02:07]} 64. Ka3 {[%clk 0:00:10.7]} 64... Rc1 {[%clk
0:02:00.3]} 65. Nxa6 {[%clk 0:00:12.3]} 65... Ra1+ {[%clk 0:02:01.6]} 66. Kb3
{[%clk 0:00:12.9]} 66... Rxa5 {[%clk 0:02:02.8]} 67. Nxc5 {[%clk 0:00:12.6]}
67... Kxc5 {[%clk 0:02:03.5]} 0-1

[Event "*** Titled Tuesday 3|2 Blitz"]
[Site "Chess.com"]
[Date "2016.02.02"]
[Round "9"]
[White "Po6Don"]
[Black "DanielRensch"]
[Result "0-1"]
[WhiteElo "2125"]
[BlackElo "2345"]
[TimeControl "180+2"]
[EndTime "18:50:38 PST"]
[Termination "DanielRensch won on time"]

1. e4 {[%clk 0:03:01.9]} 1... c5 {[%clk 0:02:59.8]} 2. c3 {[%clk 0:03:02.7]}
2... d6 {[%clk 0:03:00.6]} 3. d4 {[%clk 0:03:03.8]} 3... Nf6 {[%clk 0:03:00.4]}
4. Bd3 {[%clk 0:03:05]} 4... g6 {[%clk 0:02:55.6]} 5. h3 {[%clk 0:03:05.5]} 5...
Bg7 {[%clk 0:02:55.8]} 6. Nf3 {[%clk 0:03:06.6]} 6... O-O {[%clk 0:02:56.7]} 7.
O-O {[%clk 0:03:07.6]} 7... cxd4 {[%clk 0:02:56.1]} 8. cxd4 {[%clk 0:03:09.5]}
8... Nc6 {[%clk 0:02:57.6]} 9. Nc3 {[%clk 0:03:10]} 9... e5 {[%clk 0:02:56.7]}
10. d5 {[%clk 0:03:01.9]} 10... Nb4 {[%clk 0:02:57.5]} 11. Be3 {[%clk
0:02:58.9]} 11... Nxd3 {[%clk 0:02:51.4]} 12. Qxd3 {[%clk 0:02:59.8]} 12... Bd7
{[%clk 0:02:52.8]} 13. Rfc1 {[%clk 0:02:55.9]} 13... Ne8 {[%clk 0:02:46.5]} 14.
Nd2 {[%clk 0:02:40.9]} 14... f5 {[%clk 0:02:43.8]} 15. f3 {[%clk 0:02:42.2]}
15... f4 {[%clk 0:02:45.2]} 16. Bf2 {[%clk 0:02:41.7]} 16... g5 {[%clk
0:02:46.8]} 17. a4 {[%clk 0:02:28.6]} 17... h5 {[%clk 0:02:46.1]} 18. a5 {[%clk
0:02:20.4]} 18... g4 {[%clk 0:02:40.2]} 19. hxg4 {[%clk 0:02:18.7]} 19... hxg4
{[%clk 0:02:41]} 20. Kf1 {[%clk 0:02:17.6]} 20... a6 {[%clk 0:02:36.1]} 21. Ke2
{[%clk 0:02:03.7]} 21... Rc8 {[%clk 0:02:32.8]} 22. Rh1 {[%clk 0:02:02.3]} 22...
g3 {[%clk 0:02:06]} 23. Bb6 {[%clk 0:01:58.9]} 23... Qg5 {[%clk 0:02:00.7]} 24.
b4 {[%clk 0:01:49.5]} 24... Nc7 {[%clk 0:01:52.6]} 25. Nc4 {[%clk 0:01:23.4]}
25... Nb5 {[%clk 0:01:51.3]} 26. Na4 {[%clk 0:01:00.2]} 26... Nd4+ {[%clk
0:01:36.3]} 27. Bxd4 {[%clk 0:01:00.3]} 27... Rxc4 {[%clk 0:01:37.5]} 28. Qxc4
{[%clk 0:00:16.9]} 28... Bb5 {[%clk 0:01:36.4]} 29. Qxb5 {[%clk 0:00:16.7]}
29... axb5 {[%clk 0:01:37]} 30. Bb6 {[%clk 0:00:15.4]} 30... bxa4 {[%clk
0:01:37.2]} 31. Rhc1 {[%clk 0:00:15.8]} 31... Qh5 {[%clk 0:01:34.4]} 32. b5
{[%clk 0:00:13.7]} 32... Qh2 {[%clk 0:01:26.4]} 33. Rg1 {[%clk 0:00:14.7]} 33...
Rc8 {[%clk 0:01:25.7]} 34. Kd3 {[%clk 0:00:12.6]} 34... Qh5 {[%clk 0:01:20.1]}
35. a6 {[%clk 0:00:11.8]} 35... Qe8 {[%clk 0:01:19.6]} 36. Rgb1 {[%clk
0:00:10.5]} 36... bxa6 {[%clk 0:01:01]} 37. bxa6 {[%clk 0:00:11.1]} 37... Ra8
{[%clk 0:01:01.7]} 38. a7 {[%clk 0:00:10.3]} 38... Bf6 {[%clk 0:01:02.3]} 39.
Rb4 {[%clk 0:00:09.7]} 39... Bd8 {[%clk 0:00:56.2]} 40. Bg1 {[%clk 0:00:04.7]}
40... Ba5 {[%clk 0:00:53.1]} 41. Rbb1 {[%clk 0:00:04.8]} 41... Qc8 {[%clk
0:00:48.3]} 42. Rxa4 {[%clk 0:00:02.8]} 42... Qa6+ {[%clk 0:00:49]} 43. Rc4
{[%clk 0:00:02.7]} 43... Rc8 {[%clk 0:00:32.3]} 0-1